fUSD/lending_fUSD_20260106
["ID","MTS","AMOUNT","RATE_DAILY","PERIOD"]
[400546869,1767710238859,1166.36,0.00032876,120]
[400546870,1767710239104,1166.36,0.00032876,120]
[400546871,1767710239355,1166.36,0.00032876,120]
[400546872,1767710239601,1166.36,0.00032876,120]
[400546873,1767710239847,1166.36,0.00032876,120]
[400546874,1767710240084,1166.36,0.00032876,120]
[400546875,1767710240336,1166.36,0.00032876,120]
[400546876,1767710241158,631.22208769,0.00032876,120]
[400546877,1767710245048,585.54324955,0.00032876,120]
[400546878,1767710246575,563.98843902,0.00032876,120]
[400546879,1767710250936,573.59293093,0.00032876,120]
[400546880,1767710252395,596.65964791,0.00032876,120]
[400546881,1767710254708,566.85744728,0.00032876,120]
[400546882,1767710255461,608.9055345,0.00032876,120]
[400546883,1767710257697,569.5851311,0.00032876,120]
[400546884,1767710258307,161.99038488,0.00032876,120]
[400546885,1767710259080,612.77859913,0.00032876,120]
[400546886,1767710259167,578.3045243,0.00032876,120]
[400546887,1767710261803,310.70902267,0.00032876,120]
[400546888,1767710262778,597.2430318,0.00032876,120]
[400546889,1767710264654,611.5987143,0.00032876,120]
[400546890,1767710265611,500.0,0.00032876,120]
[400546891,1767710265890,500.0,0.00032876,120]
[400546892,1767710266138,173.018219,0.00032877,120]
[400546893,1767710266222,229.23858363,0.00032876,120]
[400546894,1767710271672,621.20309517,0.00032876,120]
[400546895,1767710273738,2514.8,0.00032876,120]
[400546896,1767710273893,619.79503354,0.00032876,120]
[400546897,1767710274028,2514.8,0.00032876,120]
[400546898,1767710274316,2514.8,0.00032876,120]
[400546899,1767710274549,2514.8,0.00032876,120]
[400546900,1767710274795,2514.8,0.00032876,120]
[400546901,1767710275038,2514.8,0.00032876,120]
[400546902,1767710275292,2514.8,0.00032876,120]
[400546903,1767710275541,617.25345489,0.00032876,120]
[400546904,1767710275628,2514.8,0.00032876,120]
[400546905,1767710275770,2514.8,0.00032876,120]
[400546906,1767710276047,2514.8,0.00032876,120]
[400546907,1767710276283,2514.8,0.00032876,120]
[400546908,1767710276523,2514.8,0.00032876,120]
[400546909,1767710277125,2514.8,0.00032876,120]
[400546910,1767710277383,2514.8,0.00032876,120]
[400546911,1767710277486,591.07242335,0.00032876,120]
[400546912,1767710277980,647.97819044,0.00032876,120]
[400546913,1767710278181,2514.8,0.00032876,120]
[400546914,1767710278454,2514.8,0.00032876,120]
[400546915,1767710278667,2514.8,0.00032876,120]
[400546916,1767710279066,500.0,0.00032876,120]
[400546917,1767710279435,500.0,0.00032876,120]
[400546918,1767710279669,243.41367059,0.00032876,120]
[400546921,1767710283736,605.42961655,0.00032876,120]
[400546922,1767710285754,500.0,0.00032876,120]
[400546923,1767710286011,500.0,0.00032876,120]
[400546924,1767710286270,245.98783512,0.00032876,120]
[400546926,1767710288784,602.99425623,0.00032876,120]
[400546927,1767710289166,593.97105818,0.00032876,120]
[400546930,1767710290428,500.0,0.00032876,120]
[400546931,1767710290694,500.0,0.00032876,120]
[400546933,1767710290940,500.0,0.00032876,120]
[400546934,1767710291183,268.10648185,0.00032876,120]
[400546935,1767710292215,598.31394807,0.00032876,120]
[400546936,1767710293426,562.25446823,0.00032876,120]
[400546937,1767710296578,611.47109009,0.00032876,120]
[400546938,1767710297692,500.0,0.00032876,120]
[400546939,1767710297946,500.0,0.00032876,120]
[400546940,1767710298216,351.14272181,0.00032876,120]
[400546941,1767710298718,621.717379,0.00032876,120]
[400546942,1767710303011,603.52784173,0.00032876,120]
[400546943,1767710306636,500.0,0.00032876,120]
[400546944,1767710307303,157.53168479,0.00032876,120]
[400546945,1767710310679,563.37338951,0.00032876,120]
[400546946,1767710310760,592.44504701,0.00032876,120]
[400546947,1767710310840,571.07144573,0.00032876,120]
[400546948,1767710312620,-500.0,0.00017999,2]
[400546949,1767710314634,562.48966768,0.00032876,120]
[400546950,1767710315070,619.33629978,0.00032876,120]
[400546951,1767710319464,500.0,0.00032876,120]
[400546952,1767710319764,500.0,0.00032876,120]
[400546953,1767710319858,560.6667171,0.00032876,120]
[400546954,1767710319996,261.1,0.00032876,120]
[400546955,1767710320642,632.07633488,0.00032876,120]
[400546956,1767710322894,635.64242109,0.00032876,120]
[400546957,1767710325120,645.64997582,0.00032876,120]
[400546958,1767710325870,582.48126218,0.00032876,120]
[400546959,1767710328499,637.26646642,0.00032876,120]
[400546960,1767710329695,562.78468631,0.00032876,120]
[400546961,1767710330354,635.51944588,0.00032876,120]
[400546962,1767710333868,638.8144989,0.00032876,120]
[400546963,1767710334863,500.0,0.00032876,120]
[400546964,1767710335116,500.0,0.00032876,120]
[400546965,1767710335411,500.0,0.00032876,120]
[400546966,1767710342459,500.0,0.00032876,120]
[400546967,1767710342747,500.0,0.00032876,120]
[400546968,1767710342980,500.0,0.00032876,120]
[400546969,1767710343703,574.16132792,0.00032876,120]
[400546970,1767710346463,500.0,0.00032876,120]
[400546971,1767710346708,500.0,0.00032876,120]
[400546972,1767710346981,500.0,0.00032876,120]
[400546973,1767710347231,500.0,0.00032876,120]
[400546974,1767710347468,500.0,0.00032876,120]
[400546975,1767710349192,639.36303882,0.00032876,120]
[400546976,1767710350974,500.0,0.00032876,120]
[400546977,1767710351053,559.06427964,0.00032876,120]
[400546978,1767710351215,500.0,0.00032876,120]
[400546979,1767710351456,500.0,0.00032876,120]
[400546980,1767710352053,500.0,0.00032876,120]
[400546981,1767710352308,500.0,0.00032876,120]
[400546982,1767710354236,500.0,0.00032876,120]
[400546983,1767710354506,500.0,0.00032876,120]
[400546984,1767710354779,500.0,0.00032876,120]
[400546985,1767710355025,500.0,0.00032876,120]
[400546986,1767710356893,500.0,0.00032876,120]
[400546987,1767710357171,500.0,0.00032876,120]
[400546988,1767710357405,500.0,0.00032876,120]
[400546989,1767710357678,500.0,0.00032876,120]
[400546990,1767710357913,500.0,0.00032876,120]
[400546991,1767710358139,568.56744325,0.00032876,120]
[400546992,1767710358748,638.90416617,0.00032876,120]
[400546993,1767710359390,564.68466267,0.00032876,120]
[400546994,1767710360626,574.05273971,0.00032876,120]
[400546995,1767710362355,602.05517583,0.00032876,120]
[400546996,1767710363297,500.0,0.00032876,120]
[400546997,1767710363544,500.0,0.00032876,120]
[400546998,1767710363798,500.0,0.00032876,120]
[400546999,1767710364082,500.0,0.00032876,120]
[400547000,1767710364313,500.0,0.00032876,120]
[400547001,1767710366378,500.0,0.00032876,120]
[400547002,1767710366595,500.0,0.00032876,120]
[400547003,1767710366677,419.95250113,0.00032876,120]
[400547004,1767710366759,500.0,0.00032876,120]
[400547005,1767710366845,500.0,0.00032876,120]
[400547006,1767710366926,225.48910164,0.00032876,120]
[400547007,1767710367113,500.0,0.00032876,120]
[400547008,1767710367374,564.70250366,0.00032876,120]
[400547009,1767710367452,500.0,0.00032876,120]
[400547010,1767710367624,500.0,0.00032876,120]
[400547011,1767710367857,628.59315015,0.00032876,120]
[400547012,1767710368934,582.20331444,0.00032876,120]
[400547013,1767710369204,644.79236766,0.00032876,120]
[400547014,1767710369735,500.0,0.00032876,120]
[400547015,1767710369922,564.4768928,0.00032876,120]
[400547016,1767710370000,500.0,0.00032876,120]
[400547017,1767710370238,500.0,0.00032876,120]
[400547018,1767710370479,500.0,0.00032876,120]
[400547019,1767710370712,500.0,0.00032876,120]
[400547020,1767710371152,610.90411053,0.00032876,120]
[400547021,1767710372739,500.0,0.00032876,120]
[400547022,1767710372986,500.0,0.00032876,120]
[400547023,1767710373244,581.80184841,0.00032876,120]
[400547024,1767710374212,597.3272986,0.00032876,120]
[400547025,1767710374389,500.0,0.00032876,120]
[400547026,1767710374551,646.29156958,0.00032876,120]
[400547027,1767710374958,535.06037519,0.00032876,120]
[400547028,1767710375264,594.2,0.00032876,120]
[400547029,1767710375513,594.2,0.00032876,120]
[400547030,1767710375748,594.2,0.00032876,120]
[400547031,1767710375988,594.2,0.00032876,120]
[400547032,1767710376234,594.2,0.00032876,120]
[400547033,1767710376488,594.2,0.00032876,120]
[400547034,1767710376721,565.90061402,0.00032876,120]
[400547035,1767710376810,594.2,0.00032876,120]
[400547036,1767710376905,500.0,0.00032876,120]
[400547037,1767710376990,594.2,0.00032876,120]
[400547038,1767710377143,500.0,0.00032876,120]
[400547039,1767710377251,594.2,0.00032876,120]
[400547040,1767710377410,500.0,0.00032876,120]
[400547041,1767710377536,594.2,0.00032876,120]
[400547042,1767710377663,500.0,0.00032876,120]
[400547043,1767710377754,594.2,0.00032876,120]
[400547044,1767710377894,500.0,0.00032876,120]
[400547045,1767710377985,565.1786354,0.00032876,120]
[400547046,1767710378073,594.2,0.00032876,120]
[400547047,1767710378165,632.26,0.00032876,120]
[400547048,1767710378351,594.2,0.00032876,120]
[400547049,1767710378611,594.2,0.00032876,120]
[400547050,1767710378697,598.42127184,0.00032876,120]
[400547051,1767710378860,594.2,0.00032876,120]
[400547052,1767710379098,594.2,0.00032876,120]
[400547053,1767710379348,594.2,0.00032876,120]
[400547054,1767710380798,560.68759698,0.00032876,120]
[400547055,1767710381895,500.0,0.00032876,120]
[400547056,1767710382136,500.0,0.00032876,120]
[400547057,1767710382216,583.8220048,0.00032876,120]
[400547058,1767710382381,500.0,0.00032876,120]
[400547059,1767710383002,500.0,0.00032876,120]
[400547060,1767710383085,500.0,0.00032876,120]
[400547061,1767710383241,156.86905762,0.00032876,120]
[400547062,1767710383327,500.0,0.00032876,120]
[400547063,1767710383498,246.90459563,0.00032876,120]
[400547064,1767710383714,500.0,0.00032876,120]
[400547065,1767710383975,500.0,0.00032876,120]
[400547066,1767710384217,500.0,0.00032876,120]
[400547067,1767710384608,500.0,0.00032876,120]
[400547068,1767710384735,500.0,0.00032876,120]
[400547069,1767710386030,500.0,0.00032876,120]
[400547070,1767710386287,500.0,0.00032876,120]
[400547071,1767710386534,500.0,0.00032876,120]
[400547072,1767710386625,648.63,0.00032876,120]
[400547073,1767710387069,500.0,0.00032876,120]
[400547074,1767710387369,500.0,0.00032876,120]
[400547075,1767710387611,158.69842428,0.00032876,120]
[400547076,1767710388708,-500.0,0.00019973,2]
[400547077,1767710389649,564.75402861,0.00032876,120]
[400547078,1767710390760,569.00340207,0.00032876,120]
[400547079,1767710391528,500.0,0.00032876,120]
[400547080,1767710391623,500.0,0.00032876,120]
[400547081,1767710391767,473.51590273,0.00032876,120]
[400547082,1767710391854,500.0,0.00032876,120]
[400547083,1767710392090,500.0,0.00032876,120]
[400547084,1767710392361,500.0,0.00032876,120]
[400547085,1767710392603,500.0,0.00032876,120]
[400547086,1767710392849,646.66875789,0.00032876,120]
[400547087,1767710393019,500.0,0.00032876,120]
[400547088,1767710393262,500.0,0.00032876,120]
[400547089,1767710393519,500.0,0.00032876,120]
[400547090,1767710393602,611.04870638,0.00032876,120]
[400547091,1767710393779,500.0,0.00032876,120]
[400547092,1767710394017,500.0,0.00032876,120]
[400547093,1767710394244,500.0,0.00032876,120]
[400547094,1767710394488,500.0,0.00032876,120]
[400547095,1767710394815,163.05574315,0.00032876,120]
[400547096,1767710395512,588.8855359,0.00032876,120]
[400547097,1767710396387,595.30858348,0.00032876,120]
[400547098,1767710396818,584.3043671,0.00032876,120]
[400547099,1767710397205,544.30543455,0.00032876,120]
[400547100,1767710399010,1000.0,0.00032876,120]
[400547101,1767710399322,1000.0,0.00032876,120]
[400547102,1767710399560,1000.0,0.00032876,120]
[400547103,1767710399819,1000.0,0.00032876,120]
[400547104,1767710399942,613.66086007,0.00032876,120]
[400547105,1767710400158,1000.0,0.00032876,120]
[400547106,1767710400425,1000.0,0.00032876,120]
[400547107,1767710400525,577.54467064,0.00032876,120]
[400547108,1767710400652,1000.0,0.00032876,120]
[400547109,1767710400897,1000.0,0.00032876,120]
[400547110,1767710401161,1000.0,0.00032876,120]
[400547111,1767710401447,1000.0,0.00032876,120]
[400547112,1767710401673,1000.0,0.00032876,120]
[400547113,1767710402013,500.0,0.00032876,120]
[400547114,1767710402265,1000.0,0.00032876,120]
[400547115,1767710402346,500.0,0.00032876,120]
[400547116,1767710402532,500.0,0.00032876,120]
[400547117,1767710402778,500.0,0.00032876,120]
[400547118,1767710402906,1000.0,0.00032876,120]
[400547119,1767710403031,500.0,0.00032876,120]
[400547120,1767710403156,1000.0,0.00032876,120]
[400547121,1767710403436,1000.0,0.00032876,120]
[400547122,1767710403682,1000.0,0.00032876,120]
[400547123,1767710403873,500.0,0.00032876,120]
[400547124,1767710403973,1000.0,0.00032876,120]
[400547125,1767710404142,500.0,0.00032876,120]
[400547126,1767710404383,500.0,0.00032876,120]
[400547127,1767710404641,500.0,0.00032876,120]
[400547128,1767710404933,500.0,0.00032876,120]
[400547129,1767710405136,616.70164368,0.00032876,120]
[400547130,1767710405243,561.89286615,0.00032876,120]
[400547131,1767710407286,647.24224672,0.00032876,120]
[400547132,1767710409216,610.99667392,0.00032876,120]
[400547133,1767710411643,578.72243569,0.00032876,120]
[400547134,1767710412156,500.0,0.00032876,120]
[400547135,1767710412395,500.0,0.00032876,120]
[400547136,1767710412566,610.34835703,0.00032876,120]
[400547137,1767710412665,500.0,0.00032876,120]
[400547138,1767710412885,179.61563176,0.00032876,120]
[400547139,1767710413104,585.85047054,0.00032876,120]
[400547140,1767710414237,500.0,0.00032876,120]
[400547141,1767710414500,500.0,0.00032876,120]
[400547142,1767710414739,219.21913513,0.00032876,120]
[400547143,1767710414831,603.01382272,0.00032876,120]
[400547144,1767710415023,540.18047179,0.00032876,120]
[400547145,1767710416654,500.0,0.00032876,120]
[400547146,1767710416902,500.0,0.00032876,120]
[400547147,1767710417136,500.0,0.00032876,120]
[400547148,1767710417393,500.0,0.00032876,120]
[400547149,1767710417676,500.0,0.00032876,120]
[400547150,1767710418399,622.26677952,0.00032876,120]
[400547151,1767710419893,500.0,0.00032876,120]
[400547152,1767710424226,641.41314499,0.00032876,120]
[400547153,1767710426265,586.52,0.00032876,120]
[400547154,1767710427678,500.0,0.00032876,120]
[400547155,1767710427931,500.0,0.00032876,120]
[400547156,1767710431391,570.72,0.00032876,120]
[400547157,1767710439971,565.49651096,0.00032876,120]
[400547158,1767710440891,500.0,0.00032876,120]
[400547159,1767710441149,500.0,0.00032876,120]
[400547160,1767710441388,500.0,0.00032876,120]
[400547161,1767710441641,500.0,0.00032876,120]
[400547162,1767710441801,648.52570679,0.00032876,120]
[400547163,1767710441893,243.44647403,0.00032876,120]
[400547164,1767710442346,637.72654058,0.00032876,120]
[400547165,1767710447181,500.0,0.00032876,120]
[400547166,1767710447460,500.0,0.00032876,120]
[400547167,1767710447644,587.41798059,0.00032876,120]
[400547168,1767710447737,500.0,0.00032876,120]
[400547169,1767710447936,500.0,0.00032876,120]
[400547170,1767710448540,500.0,0.00032876,120]
[400547172,1767710453924,515.72820017,0.00032876,120]
[400547173,1767710456202,567.24400012,0.00032876,120]
[400547174,1767710457915,587.63420895,0.00032876,120]
[400547175,1767710458135,500.0,0.00032876,120]
[400547176,1767710458428,500.0,0.00032876,120]
[400547177,1767710458646,213.75418663,0.00032876,120]
[400547178,1767710465462,581.75298095,0.00032876,120]
[400547179,1767710465698,500.0,0.00032876,120]
[400547180,1767710466224,500.0,0.00032876,120]
[400547181,1767710468363,500.0,0.00032876,120]
[400547182,1767710468626,500.0,0.00032876,120]
[400547183,1767710468866,175.96387651,0.00032876,120]
[400547184,1767710470883,624.31824018,0.00032876,120]
[400547185,1767710472558,572.42654309,0.00032876,120]
[400547186,1767710472646,500.0,0.00032876,120]
[400547187,1767710472882,500.0,0.00032876,120]
[400547188,1767710473144,500.0,0.00032876,120]
[400547189,1767710473402,500.0,0.00032876,120]
[400547190,1767710473653,500.0,0.00032876,120]
[400547191,1767710473910,589.62975903,0.00032876,120]
[400547192,1767710476371,595.05990376,0.00032876,120]
[400547193,1767710480052,582.8298325,0.00032876,120]
[400547194,1767710481831,500.0,0.00032876,120]
[400547195,1767710484049,500.0,0.00032876,120]
[400547196,1767710484322,500.0,0.00032876,120]
[400547197,1767710484565,500.0,0.00032876,120]
[400547198,1767710484808,500.0,0.00032876,120]
[400547199,1767710485047,500.0,0.00032876,120]
[400547200,1767710492338,500.0,0.00032876,120]
[400547201,1767710492581,500.0,0.00032876,120]
[400547202,1767710492822,500.0,0.00032876,120]
[400547203,1767710493070,500.0,0.00032876,120]
[400547204,1767710493303,500.0,0.00032876,120]
[400547205,1767710493660,591.7396505,0.00032876,120]
[400547206,1767710497406,500.0,0.00032876,120]
[400547207,1767710497648,500.0,0.00032876,120]
[400547208,1767710498560,599.83166614,0.00032876,120]
[400547209,1767710500947,598.48111439,0.00032876,120]
[400547210,1767710501143,532.49148536,0.00032876,120]
[400547211,1767710502229,604.68215217,0.00032876,120]
[400547212,1767710504161,574.02547599,0.00032876,120]
[400547213,1767710505903,500.0,0.00032876,120]
[400547214,1767710506147,500.0,0.00032876,120]
[400547215,1767710506382,177.2065842,0.00032876,120]
[400547216,1767710509318,567.00047101,0.00032876,120]
[400547217,1767710511867,500.0,0.00032876,120]
[400547218,1767710512105,500.0,0.00032876,120]
[400547219,1767710512359,500.0,0.00032876,120]
[400547220,1767710513267,632.02352982,0.00032876,120]
[400547221,1767710515743,612.53208712,0.00032876,120]
[400547222,1767710519848,615.62824726,0.00032876,120]
[400547223,1767710522035,601.36182325,0.00032876,120]
[400547224,1767710524012,500.0,0.00032876,120]
[400547225,1767710524270,500.0,0.00032876,120]
[400547226,1767710524495,228.98,0.00032876,120]
[400547227,1767710526462,647.52976546,0.00032876,120]
[400547228,1767710530003,608.65889333,0.00032876,120]
[400547229,1767710531807,500.0,0.00032876,120]
[400547230,1767710532074,649.64103328,0.00032876,120]
[400547231,1767710535498,179.15230529,0.00032876,120]
[400547232,1767710541413,576.00998509,0.00032876,120]
[400547233,1767710544680,627.3439624,0.00032876,120]
[400547234,1767710546957,605.25025945,0.00032876,120]
[400547235,1767710548716,617.94796578,0.00032876,120]
[400547236,1767710552193,592.68,0.00032876,120]
[400547237,1767710552350,592.73924504,0.00032876,120]
[400547238,1767710554417,603.29501712,0.00032876,120]
[400547239,1767710559335,590.77469112,0.00032876,120]
[400547240,1767710559905,576.81978947,0.00032876,120]
[400547241,1767710566737,568.28,0.00032876,120]
[400547242,1767710571540,613.46573092,0.00032876,120]
[400547243,1767710572739,592.59856806,0.00032876,120]
[400547244,1767710574457,328.4,0.00032877,120]
[400547245,1767710576669,613.86073017,0.00032876,120]
[400547246,1767710582834,576.85712243,0.00032876,120]
[400547247,1767710585070,500.0,0.00032876,120]
[400547248,1767710585290,500.0,0.00032876,120]
[400547249,1767710585518,243.74347895,0.00032876,120]
[400547250,1767710587421,562.25711466,0.00032876,120]
[400547251,1767710588716,580.64384684,0.00032876,120]
[400547252,1767710593857,612.7827013,0.00032876,120]
[400547253,1767710595797,500.0,0.00032876,120]
[400547254,1767710596051,500.0,0.00032876,120]
[400547255,1767710596287,257.89682305,0.00032876,120]
[400547256,1767710602352,601.34913907,0.00032876,120]
[400547257,1767710602498,605.94881316,0.00032876,120]
[400547258,1767710604333,591.12644286,0.00032876,120]
[400547259,1767710605627,500.0,0.00032876,120]
[400547260,1767710605903,500.0,0.00032876,120]
[400547261,1767710606169,500.0,0.00032876,120]
[400547262,1767710606624,500.0,0.00032876,120]
[400547263,1767710606912,559.58978514,0.00032876,120]
[400547264,1767710610743,588.91675353,0.00032876,120]
[400547265,1767710611254,500.0,0.00032876,120]
[400547266,1767710611491,500.0,0.00032876,120]
[400547267,1767710611778,198.42948089,0.00032876,120]
[400547268,1767710612421,500.0,0.00032876,120]
[400547269,1767710612691,500.0,0.00032876,120]
[400547270,1767710612939,500.0,0.00032876,120]
[400547271,1767710613182,500.0,0.00032876,120]
[400547272,1767710613437,500.0,0.00032876,120]
[400547273,1767710615467,500.0,0.00032876,120]
[400547274,1767710615715,500.0,0.00032876,120]
[400547275,1767710615966,500.0,0.00032876,120]
[400547276,1767710616401,500.0,0.00032876,120]
[400547277,1767710617344,500.0,0.00032876,120]
[400547278,1767710619313,519.83373047,0.00032876,120]
[400547279,1767710620458,610.63725142,0.00032876,120]
[400547280,1767710623091,500.0,0.00032876,120]
[400547281,1767710623375,500.0,0.00032876,120]
[400547282,1767710623653,500.0,0.00032876,120]
[400547283,1767710627270,570.01884434,0.00032876,120]
[400547284,1767710632434,595.48977042,0.00032876,120]
[400547285,1767710632660,500.0,0.00032876,120]
[400547286,1767710632901,500.0,0.00032876,120]
[400547287,1767710633141,500.0,0.00032876,120]
[400547288,1767710633387,500.0,0.00032876,120]
[400547289,1767710633617,500.0,0.00032876,120]
[400547290,1767710635454,500.0,0.00032876,120]
[400547291,1767710635721,500.0,0.00032876,120]
[400547292,1767710635952,500.0,0.00032876,120]
[400547293,1767710636192,500.0,0.00032876,120]
[400547294,1767710636424,500.0,0.00032876,120]
[400547295,1767710636665,595.89709794,0.00032876,120]
[400547296,1767710643828,500.0,0.00032876,120]
[400547297,1767710644080,500.0,0.00032876,120]
[400547298,1767710644320,500.0,0.00032876,120]
[400547299,1767710644578,500.0,0.00032876,120]
[400547300,1767710644814,500.0,0.00032876,120]
[400547301,1767710646860,500.0,0.00032876,120]
[400547302,1767710647094,500.0,0.00032876,120]
[400547303,1767710647345,500.0,0.00032876,120]
[400547304,1767710647585,500.0,0.00032876,120]
[400547305,1767710647839,500.0,0.00032876,120]
[400547306,1767710648092,500.0,0.00032876,120]
[400547307,1767710648344,500.0,0.00032876,120]
[400547308,1767710648640,156.77243946,0.00032876,120]
[400547309,1767710654946,500.0,0.00032876,120]
[400547310,1767710655246,500.0,0.00032876,120]
[400547311,1767710655481,500.0,0.00032876,120]
[400547312,1767710655726,500.0,0.00032876,120]
[400547313,1767710655969,500.0,0.00032876,120]
[400547314,1767710656201,572.52,0.00032876,120]
[400547315,1767710661592,500.0,0.00032876,120]
[400547316,1767710661855,500.0,0.00032876,120]
[400547317,1767710662127,500.0,0.00032876,120]
[400547318,1767710662392,500.0,0.00032876,120]
[400547319,1767710662636,500.0,0.00032876,120]
[400547320,1767710664584,500.0,0.00032876,120]
[400547321,1767710664821,500.0,0.00032876,120]
[400547322,1767710666795,500.0,0.00032876,120]
[400547323,1767710667055,500.0,0.00032876,120]
[400547324,1767710667326,500.0,0.00032876,120]
[400547325,1767710671515,500.0,0.00032876,120]
[400547326,1767710671787,500.0,0.00032876,120]
[400547327,1767710672017,500.0,0.00032876,120]
[400547328,1767710672252,500.0,0.00032876,120]
[400547329,1767710672514,500.0,0.00032876,120]
[400547330,1767710673104,563.07217466,0.00032876,120]
[400547331,1767710675033,500.0,0.00032876,120]
[400547332,1767710675289,500.0,0.00032876,120]
[400547333,1767710675532,500.0,0.00032876,120]
[400547334,1767710676314,500.0,0.00032876,120]
[400547335,1767710676561,500.0,0.00032876,120]
[400547336,1767710678683,507.9759111,0.00032876,120]
[400547337,1767710680589,500.0,0.00032876,120]
[400547338,1767710680833,500.0,0.00032876,120]
[400547339,1767710681074,500.0,0.00032876,120]
[400547340,1767710681302,579.65250141,0.00032876,120]
[400547341,1767710683305,500.0,0.00032876,120]
[400547343,1767710691227,500.0,0.00032876,120]
[400547344,1767710691469,500.0,0.00032876,120]
[400547345,1767710691723,500.0,0.00032876,120]
[400547346,1767710691964,500.0,0.00032876,120]
[400547347,1767710692230,500.0,0.00032876,120]
[400547348,1767710692455,500.0,0.00032876,120]
[400547349,1767710692698,500.0,0.00032876,120]
[400547350,1767710692970,500.0,0.00032876,120]
[400547351,1767710693209,500.0,0.00032876,120]
[400547352,1767710693443,500.0,0.00032876,120]
[400547353,1767710693703,500.0,0.00032876,120]
[400547354,1767710693944,625.18337616,0.00032876,120]
[400547355,1767710695866,521.02293635,0.00032876,120]
[400547356,1767710699543,500.0,0.00032876,120]
[400547357,1767710699795,500.0,0.00032876,120]
[400547358,1767710703423,500.0,0.00032876,120]
[400547359,1767710704468,500.0,0.00032876,120]
[400547360,1767710704718,500.0,0.00032876,120]
[400547361,1767710704984,500.0,0.00032876,120]
[400547362,1767710705219,500.0,0.00032876,120]
[400547363,1767710705497,617.60961945,0.00032876,120]
[400547364,1767710707458,500.0,0.00032876,120]
[400547365,1767710707700,500.0,0.00032876,120]
[400547366,1767710707941,500.0,0.00032876,120]
[400547367,1767710708171,500.0,0.00032876,120]
[400547368,1767710708427,500.0,0.00032876,120]
[400547369,1767710712087,500.0,0.00032876,120]
[400547370,1767710712394,500.0,0.00032876,120]
[400547371,1767710712642,500.0,0.00032876,120]
[400547372,1767710712919,500.0,0.00032876,120]
[400547373,1767710713151,500.0,0.00032876,120]
[400547374,1767710715054,500.0,0.00032876,120]
[400547375,1767710715291,595.36855419,0.00032876,120]
[400547376,1767710719146,500.0,0.00032876,120]